bitfinex/quotes_ETHUSD_20260209
["timestamp","ask_amount","ask_price","bid_price","bid_amount"]
[1770624998766,1.20848842,2068.7,2067.9,2.24697729]
[1770624998948,1.20848842,2068.7,2067.9,0.001]
[1770624998949,0.05818464,2068.5,2067.9,0.001]
[1770624999148,3.50466231,2068.7,2067.9,0.001]
[1770624999149,1.26667306,2068.7,2067.9,0.001]
[1770624999461,3.56284695,2068.7,2067.9,0.001]
[1770624999662,0.05818464,2068.4,2067.9,0.001]
[1770624999861,0.05818464,2068.1,2067.7,0.001]
[1770625000379,0.05818464,2068.1,2068.0,0.001]
[1770625000577,0.05818464,2068.1,2067.7,0.001]
[1770625002765,1.26706622,2068.1,2067.7,0.001]
[1770625002970,0.05818464,2068.4,2067.7,2.24697729]
[1770625004576,0.05818464,2068.4,2067.7,0.001]
[1770625004577,2.35435853,2068.4,2067.7,0.001]
[1770625004798,3.50489602,2068.3,2067.7,0.001]
[1770625005095,1.20872213,2068.3,2067.7,0.001]
[1770625006570,1.26688993,2068.4,2067.7,0.001]
[1770625007499,1.26688993,2068.4,2067.7,3.24487285]
[1770625008591,2.14679762,2068.1,2067.4,0.001]
[1770625008898,0.05818464,2067.8,2067.4,0.001]
[1770625009604,1.20907288,2067.7,2067.4,0.001]
[1770625011910,0.05818464,2067.5,2067.4,0.001]
[1770625012077,0.05818464,2067.5,2067.2,0.00277798]
[1770625014378,1.20924833,2067.4,2067.2,0.00277798]
[1770625015723,1.2674135,2067.5,2067.2,0.00277798]
[1770625017517,1.20907288,2067.7,2067.2,0.00277798]
[1770625017703,3.29768586,2067.7,2067.2,0.00277798]
[1770625018715,0.05818464,2067.5,2067.2,0.00277798]
[1770625018924,1.2672238,2067.8,2067.2,0.00277798]
[1770625021299,1.20903916,2067.8,2067.2,0.00277798]
[1770625021500,1.2672238,2067.8,2067.2,0.00277798]
[1770625021701,1.20903916,2067.8,2067.2,2.03757795]
[1770625022011,1.2672238,2067.8,2067.1,1.20942383]
[1770625022322,6.92467062,2067.9,2067.1,3.2442238]
[1770625022323,3.29760813,2067.9,2067.1,3.2442238]
[1770625023121,1.26726733,2067.7,2067.0,4.83779783]
[1770625023417,1.26726733,2067.7,2066.9,0.001]
[1770625023418,2.14679762,2067.4,2066.9,0.001]
[1770625025838,3.3560571,2067.4,2067.1,0.001]
[1770625026217,0.002,2067.3,2067.1,0.001]
[1770625029845,2.08861298,2067.1,2066.5,0.001]
[1770625030044,2.14679762,2067.1,2066.5,0.001]
[1770625030842,0.05818464,2066.8,2066.5,0.001]
[1770625032239,1.2094124,2067.2,2066.5,2.03579997]
[1770625032539,0.05818464,2067.1,2066.5,0.001]
[1770625033241,1.2094124,2067.2,2066.5,2.03579997]
[1770625034431,0.05818464,2066.7,2066.0,2.03579997]
[1770625034745,2.14679762,2066.7,2066.0,1.2110593]
[1770625034953,0.05818464,2066.4,2066.0,1.2110593]
[1770625035611,0.05818464,2066.7,2066.0,1.2110593]
[1770625036546,1.20971644,2066.6,2066.0,0.001]
[1770625037939,1.2678882,2066.7,2066.0,0.001]
[1770625038136,0.05818464,2066.7,2066.2,0.001]
[1770625038338,1.26784772,2066.7,2066.2,0.001]
[1770625039452,3.50068727,2066.7,2066.2,0.001]
[1770625039616,0.05818464,2066.4,2066.2,0.001]
[1770625043835,1.20975413,2066.6,2066.2,0.001]
[1770625044036,0.05818464,2066.4,2066.2,0.001]
[1770625044627,2.29102419,2066.4,2066.0,0.001]
[1770625044828,3.50090232,2066.4,2066.0,0.001]
[1770625045039,0.05818464,2066.1,2066.0,0.001]
[1770625045260,2.23283955,2066.3,2066.0,0.001]
[1770625047060,1.26806277,2066.4,2066.0,0.001]
[1770625047221,3.44252782,2066.7,2066.0,0.001]
[1770625047552,3.50071246,2066.7,2066.0,0.001]
[1770625048225,3.5006894,2066.7,2066.0,0.001]
[1770625048551,1.26784985,2066.7,2066.0,0.001]
[1770625049331,2.23283955,2066.9,2066.0,3.31162068]
[1770625049528,1.21142476,2067.1,2066.1,2.10055292]
[1770625049854,0.05818464,2067.0,2066.1,2.10055292]
[1770625050238,0.05818464,2066.7,2066.2,0.001]
[1770625050835,0.002,2066.4,2066.2,2.10155292]
[1770625051051,0.002,2067.1,2066.2,2.10155292]
[1770625051549,0.002,2067.1,2066.4,2.10055292]
[1770625053759,0.002,2067.1,2066.5,1.20977498]
[1770625053930,0.05818464,2067.0,2066.5,1.20977498]
[1770625055840,0.05818464,2067.0,2066.3,3.3472896]
[1770625056261,1.74017835,2065.7,2065.1,0.001]
[1770625056457,0.05818464,2065.3,2065.1,0.001]
[1770625056767,0.05818464,2065.2,2064.8,1.21075867]
[1770625056963,0.05818464,2064.9,2064.7,1.21078683]
[1770625057262,2.15324671,2065.6,2064.7,1.21080119]
[1770625057452,0.05818464,2065.3,2064.7,3.34819872]
[1770625059857,0.05818464,2065.3,2064.7,1.21080119]
[1770625061058,0.05818464,2065.3,2064.6,2.13739753]
[1770625061358,4.84052624,2065.9,2064.6,2.13739753]
[1770625061359,0.05818464,2065.8,2064.6,2.13739753]
[1770625061866,0.05818464,2065.5,2064.6,2.13739753]
[1770625062426,0.05818464,2065.5,2064.9,0.001]
[1770625062738,0.002,2065.4,2064.9,2.13839753]
[1770625063158,0.002,2065.4,2065.0,1.21065375]
[1770625065537,0.05818464,2065.2,2064.9,0.001]
[1770625067064,0.05818464,2064.7,2064.2,1.21112295]
[1770625067437,0.05818464,2064.7,2064.0,2.09854309]
[1770625067666,0.05818464,2064.9,2064.0,2.09854309]
[1770625068552,0.05818464,2064.8,2064.0,2.09854309]
[1770625069333,0.05818464,2064.8,2064.1,1.21118162]
[1770625069532,1.26896882,2064.8,2064.0,3.30974903]
[1770625069755,0.05818464,2064.8,2064.0,3.30974903]
[1770625069965,0.05818464,2064.5,2064.0,3.30974903]
[1770625070477,0.05818464,2064.5,2064.0,1.21120594]
[1770625071471,0.05818464,2064.5,2063.9,4.84506704]
[1770625071973,0.05818464,2064.2,2063.9,1.21129899]
[1770625072145,0.05818464,2064.5,2063.9,1.21129899]
[1770625073860,0.05818464,2064.5,2063.8,0.001]
[1770625074236,0.05818464,2064.2,2063.8,0.001]
[1770625074450,0.05818464,2064.5,2063.8,0.001]
[1770625074657,0.05818464,2064.2,2063.8,0.001]
[1770625074861,0.05818464,2064.5,2063.9,2.09854309]
[1770625075057,0.05818464,2064.5,2063.8,0.001]
[1770625075366,0.05818464,2064.5,2064.1,0.001]
[1770625075554,0.002,2064.4,2064.1,0.001]
[1770625076634,0.002,2064.4,2064.1,2.09954309]
[1770625078132,0.002,2064.4,2064.2,1.21112295]
[1770625078834,0.05818464,2064.3,2064.1,0.001]
[1770625080051,1.26927941,2064.3,2063.9,0.001]
[1770625080287,1.26927941,2064.3,2063.5,0.003]
[1770625080288,0.05818464,2064.0,2063.5,0.003]
[1770625080576,0.05818464,2063.7,2063.5,0.003]
[1770625080750,1.26927941,2064.3,2063.5,1.21452462]
[1770625080955,0.05818464,2064.0,2063.5,1.21452462]
[1770625081140,0.05818464,2063.7,2063.5,0.003]
[1770625081344,0.05818464,2064.0,2063.5,0.003]
[1770625081345,0.05818464,2063.6,2063.5,0.003]
[1770625081648,2.21821183,2064.0,2063.5,0.003]
[1770625081855,0.05818464,2063.7,2063.5,0.003]
[1770625082552,0.05818464,2064.0,2063.5,0.003]
[1770625083379,1.26943009,2064.0,2063.5,0.003]
[1770625083570,1.26943009,2064.0,2063.1,2.09854309]
[1770625083770,0.05818464,2064.0,2063.1,2.09854309]
[1770625084075,0.05818464,2063.7,2063.1,2.09854309]
[1770625084574,0.05818464,2064.0,2063.2,3.31025305]
[1770625084780,1.26925345,2064.3,2063.3,2.09854309]
[1770625084976,0.05818464,2064.0,2063.3,2.09854309]
[1770625085186,0.05818464,2064.2,2063.4,2.09854309]
[1770625085978,0.05818464,2063.9,2063.2,3.31025305]
[1770625087965,0.05818464,2063.9,2063.0,4.84718115]
[1770625087966,0.05818464,2063.6,2063.0,4.84718115]
[1770625088142,0.05818464,2063.5,2063.1,1.21174528]
[1770625088678,0.05818464,2063.5,2063.4,0.001]
[1770625089883,0.05818464,2063.9,2063.4,0.001]
[1770625090379,0.05818464,2063.6,2063.1,0.001]
[1770625090583,0.05818464,2063.6,2063.0,1.23452235]
[1770625090756,0.05818464,2063.6,2063.0,1.23552235]
[1770625091858,1.26966199,2063.6,2063.0,1.23552235]
[1770625092065,0.05818464,2063.6,2063.0,1.23552235]
[1770625092382,1.2696609,2063.6,2063.0,1.23552235]
[1770625092589,0.05818464,2063.3,2062.9,1.21188521]
[1770625092750,1.26983865,2063.3,2062.9,0.001]
[1770625093080,0.05818464,2063.0,2062.5,1.21212121]
[1770625093382,0.05818464,2063.0,2062.6,0.001]
[1770625094255,0.05818464,2063.3,2062.6,0.001]
[1770625094748,0.05818464,2063.0,2062.6,0.001]
[1770625094954,0.05818464,2063.0,2062.3,0.001]
[1770625095256,0.05818464,2063.0,2062.4,0.001]
[1770625096774,0.05818464,2063.3,2062.6,2.17478467]
[1770625097989,0.05818464,2063.4,2062.6,2.17478467]
[1770625098278,3.28731422,2063.7,2062.7,2.09296241]
[1770625098453,0.05818464,2063.4,2062.7,2.09196241]
[1770625098887,0.05818464,2063.4,2062.8,1.21194492]
[1770625099054,0.05818464,2063.4,2062.8,1.21294492]
[1770625099474,0.05818464,2063.4,2062.8,3.30490733]
[1770625099680,1.26958065,2063.8,2062.8,3.30490733]
[1770625099899,0.05818464,2063.5,2062.8,3.30490733]
[1770625100054,0.05818464,2063.5,2062.9,2.09196241]
[1770625100662,0.05818464,2063.5,2063.0,0.001]
[1770625100870,0.05818464,2063.8,2063.1,1.21176869]
[1770625101257,0.05818464,2063.5,2063.1,1.21176869]
[1770625101686,0.05818464,2063.8,2063.1,1.21176869]
[1770625101869,0.05818464,2063.8,2063.2,0.001]
[1770625101870,0.05818464,2063.5,2063.2,0.001]
[1770625103512,0.05703706,2063.5,2063.2,0.001]
[1770625103689,0.05582724,2063.5,2063.2,0.001]
[1770625103982,0.05455179,2063.5,2063.2,0.001]
[1770625104673,0.05455179,2063.5,2062.9,0.001]
[1770625104875,0.05455179,2063.5,2063.0,0.001]
[1770625104876,0.05818464,2063.2,2063.0,0.001]
[1770625105075,0.05818464,2063.2,2062.7,1.21196101]
[1770625105076,0.05818464,2062.9,2062.7,1.21199277]
[1770625105683,0.05818464,2062.9,2062.6,0.001]
[1770625105882,0.05818464,2063.2,2062.6,0.001]
[1770625106266,0.05818464,2063.4,2062.9,2.09196241]
[1770625106476,0.05818464,2063.4,2062.6,0.001]
[1770625106477,0.05818464,2063.7,2062.6,2.09296241]
[1770625106681,0.05818464,2063.4,2062.6,2.09296241]
[1770625108088,0.05818464,2063.4,2062.7,1.21200368]
[1770625108394,0.05818464,2063.1,2062.7,1.21200368]
[1770625109070,0.05818464,2063.4,2062.7,1.21200368]
[1770625110196,0.05818464,2063.4,2062.6,0.001]
[1770625110693,0.05818464,2063.6,2062.6,2.09296241]
[1770625112899,0.05818464,2063.6,2062.7,1.21200368]
[1770625113697,0.05818464,2063.3,2062.7,3.30396609]
[1770625113890,0.05818464,2063.3,2062.7,1.21200368]
[1770625114299,0.05818464,2063.6,2062.7,3.30396609]
[1770625114490,0.05818464,2063.6,2062.9,2.09296241]
[1770625114802,0.002,2063.4,2063.0,1.21182743]
[1770625115699,0.05818464,2063.3,2063.0,1.21182743]
[1770625117299,0.05818464,2063.3,2062.9,0.001]
[1770625117706,0.002,2063.4,2062.9,0.001]
[1770625118000,0.002,2063.4,2062.9,2.09296241]
[1770625118206,0.05818464,2063.9,2063.0,2.09196241]
[1770625118409,0.05818464,2063.8,2062.9,2.09296241]
[1770625118901,0.05818464,2063.8,2062.9,0.001]
[1770625118902,0.05818464,2063.5,2062.9,0.001]
[1770625119207,2.10268842,2063.8,2062.9,0.001]
[1770625119383,0.05818464,2063.5,2062.9,0.001]
[1770625121607,0.05818464,2063.8,2062.9,0.001]
[1770625121792,2.10268842,2063.5,2062.9,0.001]
[1770625121992,0.05818464,2063.2,2062.9,0.001]
[1770625122186,1.26955188,2063.8,2062.9,0.001]
[1770625122187,1.21136724,2063.8,2062.9,0.001]
[1770625122410,0.05818464,2063.6,2062.9,0.001]
[1770625122818,2.04450378,2063.2,2062.6,1.21205156]
[1770625123026,0.05818464,2063.1,2062.6,1.21205156]
[1770625123307,0.05818464,2063.1,2062.6,1.2120354]
[1770625123619,0.05818464,2063.1,2062.3,1.21223876]
[1770625124516,0.05818464,2062.8,2062.3,1.21223876]
[1770625124810,0.05818464,2063.1,2062.3,1.21223876]
[1770625125310,2.07498482,2063.0,2062.3,1.21223876]
[1770625125495,0.05818464,2062.8,2062.3,1.21223876]
[1770625125684,0.33222451,2063.0,2062.2,4.84895505]
[1770625125881,0.05818464,2062.8,2062.2,4.84895505]
[1770625126320,0.33222451,2063.0,2062.2,4.84895505]
[1770625126506,0.33222451,2063.0,2062.3,2.22972121]
[1770625127036,2.40876696,2063.6,2062.3,2.22972121]
[1770625127185,0.05818464,2063.4,2062.3,2.22972121]
[1770625127683,0.05818464,2063.4,2062.5,2.22972121]
[1770625128306,0.05818464,2063.3,2062.5,2.22972121]
[1770625129011,0.05818464,2063.0,2062.5,2.22972121]
[1770625129211,0.05818464,2063.3,2062.4,1.21217998]
[1770625129412,0.05818464,2063.3,2062.5,0.001]
[1770625129595,0.002,2063.1,2062.5,0.001]
[1770625130128,0.05818464,2063.0,2062.5,0.001]
[1770625132939,0.002,2063.1,2062.5,0.001]
[1770625135416,0.002,2063.1,2062.5,2.23072121]
[1770625137533,0.002,2063.1,2062.6,1.21206244]
[1770625137709,0.002,2063.1,2062.7,2.22972121]
[1770625137903,0.002,2063.1,2062.6,1.21206244]
[1770625138706,0.002,2063.1,2062.6,3.44178365]
[1770625139342,0.05818464,2063.0,2062.6,1.21206244]
[1770625139509,0.05818464,2063.0,2062.5,0.001]
[1770625140436,0.002,2063.1,2062.5,0.001]
[1770625141212,0.002,2063.1,2062.5,2.23072121]
[1770625141413,0.002,2063.1,2062.6,1.21206244]
[1770625141617,0.002,2063.1,2062.7,2.22972121]
[1770625142821,0.002,2063.3,2062.7,2.22972121]
[1770625143221,0.002,2063.3,2062.7,2.23072121]
[1770625143421,0.002,2062.8,2062.7,2.23072121]
[1770625143622,0.002,2063.0,2062.8,2.22972121]
[1770625143818,0.33378214,2063.6,2062.9,2.22972121]
[1770625144232,0.002,2063.9,2063.0,2.22972121]
[1770625145541,0.002,2063.9,2063.2,2.22972121]
[1770625147325,0.05818464,2063.7,2063.1,1.21176869]
[1770625147652,0.05818464,2063.8,2063.0,7.076796]
[1770625147854,0.002,2063.9,2063.0,7.076796]
[1770625148024,0.05818464,2063.8,2063.0,7.076796]
[1770625149041,0.002,2063.9,2063.1,2.22972121]
[1770625149950,0.002,2063.9,2063.2,3.44143117]
[1770625150751,0.002,2063.9,2063.3,2.22972121]
[1770625151853,0.002,2063.9,2063.4,1.21159251]
[1770625152951,0.002,2063.9,2063.5,2.22972121]
[1770625154063,0.002,2063.9,2063.6,1.21147509]
[1770625155958,0.002,2063.9,2063.5,4.84590036]
[1770625156533,0.002,2064.1,2063.6,2.19887135]
[1770625156738,0.002,2064.1,2063.5,4.84590036]
[1770625157867,0.05818464,2064.0,2063.5,4.84590036]
[1770625158162,0.05818464,2063.7,2063.4,1.2115338]
[1770625158470,2.22806778,2064.0,2063.4,1.2115338]
[1770625159062,0.05818464,2063.7,2063.4,1.2115338]
[1770625159360,2.22806778,2064.0,2063.4,1.2115338]
[1770625159541,0.05818464,2064.0,2063.4,1.2115338]
[1770625160066,0.05818464,2064.0,2063.3,0.001]
[1770625161272,0.05818464,2063.7,2063.3,0.001]
[1770625161957,2.16988314,2063.6,2063.3,0.001]
[1770625162947,0.05818464,2063.4,2063.3,0.001]
[1770625163770,0.05818464,2063.7,2063.3,0.001]
[1770625163965,0.05818464,2063.9,2063.3,0.001]
[1770625164168,2.22806778,2063.9,2063.3,0.001]
[1770625167251,0.05818464,2063.9,2063.3,0.001]
[1770625167771,0.05818464,2063.6,2063.3,0.001]
[1770625168980,2.16988314,2063.8,2063.3,0.001]
[1770625169175,0.05818464,2063.9,2063.3,0.001]
[1770625169770,0.05818464,2063.9,2063.5,0.001]
[1770625169969,0.002,2063.7,2063.5,0.001]
[1770625171975,0.002,2064.1,2063.5,0.001]
[1770625172268,0.002,2064.1,2063.5,2.19741917]
[1770625172449,2.22806778,2064.0,2063.5,0.001]
[1770625173469,0.05818464,2064.0,2063.5,0.001]
[1770625174273,0.002,2064.1,2063.5,0.001]
[1770625174476,0.06018464,2064.1,2063.5,0.001]
[1770625175871,0.06018464,2064.1,2063.6,2.19641917]
[1770625176073,0.06018464,2064.6,2063.7,2.19641917]
[1770625176371,0.06018464,2064.6,2063.5,0.001]
[1770625176372,1.27108985,2064.6,2063.5,0.001]
[1770625176572,2.16988314,2064.2,2063.5,0.001]
[1770625176750,0.05818464,2064.0,2063.5,0.001]
[1770625177147,0.05818464,2063.7,2063.5,0.001]
[1770625177580,2.22806778,2064.0,2063.5,0.001]
[1770625177751,0.05818464,2063.7,2063.5,0.001]
[1770625178473,3.43935438,2064.0,2063.5,0.001]
[1770625178658,3.43934722,2064.0,2063.5,0.001]
[1770625178977,0.05818464,2063.7,2063.5,0.001]
[1770625181088,2.22806778,2064.0,2063.5,0.001]
[1770625181277,0.05818464,2064.0,2063.5,0.001]
[1770625182676,0.05818464,2064.0,2063.7,0.001]
[1770625183265,2.16988314,2063.9,2063.7,0.001]
[1770625185367,0.05818464,2064.0,2063.7,0.001]
[1770625185759,2.21571427,2064.0,2063.7,0.001]
[1770625186471,2.21571427,2064.0,2063.5,0.001]
[1770625186674,0.05818464,2063.6,2063.5,0.001]
[1770625187058,2.21571427,2063.6,2063.3,0.001]
[1770625187382,2.15752963,2063.4,2062.7,0.001]
[1770625187586,0.05818464,2063.2,2062.7,1.21296557]
[1770625187761,0.05818464,2063.2,2062.7,1.21299996]
[1770625188079,0.05818464,2063.3,2062.8,1.21193815]
[1770625188969,0.05818464,2063.3,2062.7,1.21295238]
[1770625189279,0.05818464,2063.0,2062.7,0.001]
[1770625189674,2.15752963,2062.9,2062.5,0.001]
[1770625189874,0.05818464,2062.7,2062.5,0.001]
[1770625190583,0.05818464,2062.7,2062.3,1.21323653]
[1770625191462,0.05818464,2062.7,2062.3,0.001]
[1770625193383,0.05818464,2063.0,2062.3,2.11864202]
[1770625193568,0.05818464,2062.7,2062.3,0.001]
[1770625195081,0.05818464,2063.0,2062.3,0.001]
[1770625195785,0.05818464,2063.0,2062.5,0.001]
[1770625196177,0.002,2062.7,2062.5,0.001]
[1770625196481,0.05818464,2063.2,2062.5,2.11864202]
[1770625197461,0.05818464,2062.9,2062.6,1.21206244]
[1770625197681,0.05818464,2063.2,2062.6,1.21206244]
[1770625198271,0.05818464,2062.9,2062.6,1.21206244]
[1770625198790,0.05818464,2063.2,2062.6,1.21206244]
[1770625200394,0.002,2063.6,2062.7,2.11764202]
[1770625200592,0.002,2063.6,2062.9,2.11764202]
[1770625200769,0.002,2063.6,2063.1,2.11764202]
[1770625201660,0.06018464,2064.2,2063.2,2.11764202]
[1770625202265,0.002,2064.2,2063.4,2.11764202]
[1770625202693,0.002,2064.2,2063.6,2.11764202]
[1770625203618,0.002,2064.4,2063.7,2.11764202]
[1770625204296,0.002,2064.4,2063.8,1.21135768]
[1770625204473,0.002,2064.4,2063.9,2.11764202]
[1770625204677,0.002,2064.6,2063.9,2.11764202]
[1770625206275,0.05818464,2064.4,2063.7,4.84543075]
[1770625206778,0.002,2064.6,2063.9,2.11764202]
[1770625208188,0.002,2064.2,2063.9,2.11764202]
[1770625208383,0.002,2064.6,2064.0,1.21124031]
[1770625208976,0.002,2064.4,2064.0,3.32888233]
[1770625209874,0.002,2064.6,2064.1,2.11764202]
[1770625210595,0.002,2064.6,2064.2,1.21112295]
[1770625211710,0.002,2064.6,2064.2,3.32876497]
[1770625212907,0.002,2064.6,2064.2,1.21112295]
[1770625213110,0.05818464,2064.4,2064.2,1.21112295]
[1770625213281,0.05818464,2064.4,2064.0,1.21119874]
[1770625213480,0.05818464,2064.4,2064.1,1.21117894]
[1770625216122,0.002,2064.6,2063.8,2.01786811]
[1770625216299,0.002,2064.6,2063.9,2.01786811]
[1770625218116,0.002,2064.6,2064.0,1.21124031]
[1770625218416,0.002,2064.6,2064.0,3.19441057]
[1770625219219,1e-08,2064.8,2064.1,1.98317026]
[1770625220621,1e-08,2064.8,2064.2,3.19429321]
[1770625220818,0.002,2064.4,2064.2,3.19429321]
[1770625221500,0.002,2064.6,2064.2,3.19429321]
[1770625223031,0.002,2064.6,2064.3,1.98317026]
[1770625223328,1e-08,2064.8,2064.3,1.98317026]
[1770625223532,0.002,2065.3,2064.3,1.98317026]
[1770625223836,0.002,2065.3,2064.4,1.98317026]
[1770625224209,0.05818464,2065.1,2064.4,1.98317026]
[1770625224618,0.002,2065.3,2064.5,3.19411722]
[1770625225001,0.002,2065.3,2064.5,1.21094696]
[1770625225306,0.05818464,2065.1,2064.5,1.21094696]
[1770625226149,0.05818464,2064.8,2064.5,1.21094696]
[1770625226349,2.15289251,2065.1,2064.5,1.21094696]
[1770625226832,2.15289251,2065.1,2064.1,1.98417026]
[1770625227538,0.002,2065.3,2064.1,1.98417026]
[1770625228031,0.05818464,2065.1,2064.1,1.98417026]
[1770625229330,2.09670787,2065.3,2064.3,1.98317026]
[1770625229730,0.002,2065.3,2064.3,1.98317026]
[1770625230141,0.05818464,2065.1,2064.3,1.98317026]
[1770625231535,0.05818464,2065.1,2064.4,3.19417587]
[1770625233139,0.05818464,2065.1,2064.4,1.21200561]
[1770625233532,0.06018464,2065.1,2064.4,0.001]
[1770625234056,0.05818464,2064.8,2064.4,0.001]
[1770625234220,2.15289251,2064.8,2064.4,0.001]
[1770625237631,0.05818464,2064.5,2064.1,0.001]
[1770625239047,2.09470787,2064.9,2064.1,0.001]
[1770625239436,0.05818464,2064.8,2064.1,0.001]
[1770625241554,0.05818464,2064.8,2064.1,1.21218162]
[1770625243863,0.05818464,2064.5,2064.1,0.001]
[1770625244857,0.05818464,2064.8,2064.1,0.001]
[1770625245745,0.05818464,2064.8,2064.3,0.001]
[1770625245943,0.002,2064.6,2064.3,0.001]
[1770625249758,0.05818464,2064.5,2064.3,0.001]
[1770625250540,0.05818464,2064.0,2063.4,4.8461574]
[1770625250754,2.04079813,2064.0,2063.3,4.8474839]
[1770625250942,2.04079813,2064.0,2063.5,1.2115292]
[1770625251433,2.04079813,2064.0,2063.3,0.001]
[1770625251636,1.26913299,2064.5,2063.8,1.21133432]
[1770625251867,2.04079813,2064.5,2063.8,1.21133432]
[1770625252163,0.05818464,2064.2,2063.6,4.84543075]
[1770625254071,2.04079813,2064.2,2063.3,1.21265123]
[1770625254244,2.04079813,2064.2,2063.3,3.22873999]
[1770625254444,0.05818464,2063.9,2063.3,3.22873999]
[1770625254674,2.04079813,2064.2,2063.3,3.22873999]
[1770625256372,2.04079813,2064.2,2063.4,2.01608876]
[1770625256563,0.05818464,2064.4,2063.4,2.01608876]
[1770625256761,0.05818464,2064.5,2063.4,2.01608876]
[1770625256966,0.002,2064.6,2063.4,2.01608876]
[1770625257150,0.05818464,2064.5,2063.4,2.01608876]
[1770625257879,0.05818464,2064.2,2063.4,2.01608876]
[1770625258260,2.03982497,2064.2,2063.3,0.001]
[1770625258466,2.03771743,2064.2,2063.4,1.21159251]
[1770625258853,2.03771743,2064.2,2063.5,0.001]
[1770625259053,0.002,2064.0,2063.5,0.001]
[1770625259671,0.002,2064.0,2063.6,2.01608876]
[1770625260564,0.002,2064.0,2063.5,0.001]
[1770625262050,0.002,2064.0,2063.5,2.01708876]
[1770625262990,0.002,2064.0,2063.6,1.21147509]
[1770625264765,0.05818464,2063.9,2063.5,0.001]
[1770625265353,0.002,2064.0,2063.5,0.001]
[1770625265855,0.05818464,2063.9,2063.5,0.001]
[1770625266063,0.05818464,2063.8,2063.5,0.001]
[1770625266576,1.98461349,2064.0,2063.5,0.001]
[1770625266772,0.05818464,2063.8,2063.5,0.001]
[1770625267150,1.98261349,2063.7,2063.3,0.001]
[1770625267354,0.05818464,2063.5,2063.3,0.001]
[1770625268260,0.05818464,2063.5,2063.0,1.21278653]
[1770625268689,0.05818464,2063.5,2063.1,1.21175858]
[1770625268872,0.05818464,2063.2,2063.0,0.001]
[1770625269071,1.98261349,2063.4,2063.0,0.001]
[1770625269384,0.05818464,2063.2,2063.0,0.001]
[1770625270285,0.05818464,2063.8,2063.0,0.001]
[1770625270286,1.98261349,2063.7,2063.0,0.001]
[1770625270690,3.19404635,2063.7,2063.0,0.001]
[1770625270860,3.25238518,2063.5,2063.0,0.001]
[1770625271063,1.98261349,2063.4,2063.0,0.001]
[1770625271363,0.002,2063.3,2063.0,0.001]
[1770625271762,0.05818464,2063.2,2063.0,0.001]
[1770625271979,0.05818464,2063.1,2063.0,0.001]
[1770625272592,1.98261349,2063.2,2062.5,0.001]
[1770625272789,0.05818464,2063.1,2062.5,0.001]
[1770625273467,3.25258208,2063.1,2062.5,0.001]
[1770625273800,2.04079813,2062.8,2062.5,0.001]
[1770625274472,2.04079813,2062.8,2061.8,0.003]
[1770625274675,2.04079813,2062.8,2060.7,1.21313638]
[1770625274676,0.05818464,2061.5,2060.7,1.21313638]
[1770625274880,0.05818464,2061.5,2059.9,1.45633895]
[1770625274881,0.05818464,2060.4,2059.9,2.01608876]
[1770625275099,4.93397384,2061.4,2060.3,1.21341226]
[1770625275402,0.05818464,2061.3,2060.7,1.21317998]
[1770625275712,0.0572695,2061.0,2060.6,1.21320434]
[1770625275917,0.05818464,2061.3,2060.6,1.21320434]
[1770625276202,2.94797557,2061.4,2060.6,1.21320732]
[1770625276489,0.05818464,2060.8,2060.5,1.21325604]
[1770625276691,0.05818464,2060.8,2060.4,1.21332535]
[1770625277065,0.05818464,2059.9,2059.1,5.10896267]
[1770625277287,0.05818464,2061.1,2059.1,5.10896267]
[1770625277288,0.05818464,2060.3,2059.5,6.79526779]
[1770625277497,0.05818464,2060.3,2059.6,1.21382792]
[1770625277699,0.05818464,2060.0,2059.6,1.21382792]
[1770625277902,0.05818464,2059.7,2059.6,1.21382792]
[1770625278075,0.05818464,2060.6,2059.6,1.21382792]
[1770625278397,0.05818464,2060.2,2059.6,1.21382792]
[1770625278577,2.81579424,2060.5,2059.7,2.21447628]
[1770625279209,0.05818464,2060.4,2059.7,2.21447628]
[1770625279513,0.05818464,2060.4,2059.8,1.21371006]
[1770625279693,2.81579424,2060.5,2059.9,2.21447628]
[1770625279895,2.81579424,2060.5,2060.0,2.21447628]
[1770625280077,0.05818464,2061.0,2060.5,2.21447628]
[1770625280606,0.05818464,2061.3,2060.5,2.21447628]
[1770625281393,0.05818464,2061.0,2060.6,1.21323886]
[1770625281978,0.05818464,2061.3,2060.6,1.21323886]
[1770625282577,0.05818464,2061.0,2060.6,1.21323886]
[1770625283180,0.05818464,2061.0,2060.5,7.06743172]
[1770625283375,0.05818464,2060.9,2060.6,1.21323886]
[1770625283753,0.05818464,2061.3,2060.6,1.21323886]
[1770625284010,0.05818464,2060.9,2060.6,1.21323886]
[1770625284187,0.05818464,2061.3,2060.6,1.21323886]
[1770625284387,0.05818464,2061.0,2060.6,1.21323886]
[1770625284589,0.05818464,2061.0,2060.8,0.001]
[1770625285009,0.05818464,2061.3,2060.8,0.001]
[1770625285300,0.06018464,2061.0,2060.8,0.001]
[1770625285687,0.05818464,2061.5,2060.8,0.001]
[1770625286003,0.05818464,2061.1,2060.8,0.001]
[1770625286187,0.05818464,2061.5,2060.8,0.001]
[1770625286409,0.05818464,2061.2,2060.8,0.001]
[1770625286902,0.05818464,2061.1,2060.8,0.001]
[1770625287239,0.05818464,2060.9,2060.8,0.001]
[1770625288217,0.05818464,2061.1,2060.8,0.001]
[1770625288629,0.05818464,2060.3,2060.1,2.21447628]
[1770625288796,0.05818464,2060.6,2060.2,1.21347441]
[1770625288995,0.05818464,2060.6,2059.8,7.06908332]
[1770625288996,0.05818464,2060.0,2059.8,2.21447628]
[1770625289235,0.05818464,2059.9,2059.8,1.21371006]
[1770625289525,0.05818464,2060.3,2059.7,1.21376899]
[1770625289526,0.05818464,2059.8,2059.7,1.21376899]
[1770625289737,0.05818464,2060.0,2059.4,4.85577238]
[1770625289910,0.05818464,2060.0,2059.7,1.21372317]
[1770625290117,0.05818464,2059.7,2059.3,4.85601546]
[1770625290311,0.05818464,2059.9,2059.3,4.85601546]
[1770625290633,0.05818464,2059.6,2059.3,4.85601546]
[1770625291200,0.05818464,2059.4,2058.9,1.21419354]